[Event "Titled Tuesday Blitz February 15 Late 2022"]
[White "Bellissimo, Joseph F."]
[Black "Iskusnyh, Sergei"]
[WhiteFideId "2609843"]
[BlackFideId "4120027"]
[WhiteElo "2061"]
[BlackElo "2492"]
[Result "0-1"]
[Round "11"]
[TimeControl "180+1"]
[Date "2022.02.15"]
[WhiteClock "0:00:25"]
[BlackClock "0:00:16"]

1. e4 {[%clk 0:03:00]}  e6 {[%clk 0:02:59]} 2. d4 {[%clk 0:03:00]}  d5 {[%clk 0:02:59]} 3. Nd2 {[%clk 0:03:00]}  c5 {[%clk 0:02:58]} 4. Ngf3 {[%clk 0:03:00]}  cxd4 {[%clk 0:02:58]} 5. exd5 {[%clk 0:03:00]}  Qxd5 {[%clk 0:02:57]} 6. Bc4 {[%clk 0:03:01]}  Qd7 {[%clk 0:02:57]} 7. O-O {[%clk 0:02:59]}  Nc6 {[%clk 0:02:57]} 8. Nb3 {[%clk 0:02:59]}  a6 {[%clk 0:02:56]} 9. Nbxd4 {[%clk 0:02:58]}  Nxd4 {[%clk 0:02:56]} 10. Nxd4 {[%clk 0:02:58]}  Qc7 {[%clk 0:02:53]} 11. Bb3 {[%clk 0:02:57]}  Bd6 {[%clk 0:02:46]} 12. h3 {[%clk 0:02:54]}  Ne7 {[%clk 0:02:44]} 13. Re1 {[%clk 0:02:49]}  O-O {[%clk 0:02:43]} 14. c3 {[%clk 0:02:50]}  Ng6 {[%clk 0:02:41]} 15. Qh5 {[%clk 0:02:47]}  b5 {[%clk 0:02:27]} 16. Nf3 {[%clk 0:02:46]}  Qc5 {[%clk 0:02:03]} 17. Ng5 {[%clk 0:02:37]}  h6 {[%clk 0:01:49]} 18. Be3 {[%clk 0:02:37]}  Qe5 {[%clk 0:01:45]} 19. f4 {[%clk 0:02:35]}  Nxf4 {[%clk 0:01:41]} 20. Bxf4 {[%clk 0:02:10]}  Qxf4 {[%clk 0:01:40]} 21. Nf3 {[%clk 0:02:11]}  Bb7 {[%clk 0:01:39]} 22. Rf1 {[%clk 0:02:06]}  Bxf3 {[%clk 0:01:37]} 23. Rxf3 {[%clk 0:02:06]}  Qh2+ {[%clk 0:01:36]} 24. Kf2 {[%clk 0:02:06]}  Rac8 {[%clk 0:01:32]} 25. Qg4 {[%clk 0:01:59]}  Bc5+ {[%clk 0:01:29]} 26. Ke2 {[%clk 0:01:59]}  Rfd8 {[%clk 0:01:21]} 27. Rg3 {[%clk 0:01:47]}  Bf8 {[%clk 0:01:15]} 28. Rf1 {[%clk 0:01:46]}  Rc5 {[%clk 0:01:10]} 29. Qf4 {[%clk 0:01:40]}  Rf5 {[%clk 0:01:01]} 30. Rxg7+ {[%clk 0:01:40]}  Kxg7 {[%clk 0:00:51]} 31. Qxh2 {[%clk 0:01:41]}  Bd6 {[%clk 0:00:50]} 32. g3 {[%clk 0:01:31]}  Re5+ {[%clk 0:00:45]} 33. Kf3 {[%clk 0:01:31]}  Bc5 {[%clk 0:00:44]} 34. Qc2 {[%clk 0:01:09]}  Re3+ {[%clk 0:00:44]} 35. Kg2 {[%clk 0:01:10]}  Rdd3 {[%clk 0:00:44]} 36. Rf4 {[%clk 0:01:00]}  Rxg3+ {[%clk 0:00:42]} 37. Kf1 {[%clk 0:00:57]}  Rg1+ {[%clk 0:00:41]} 38. Ke2 {[%clk 0:00:57]}  Re3+ {[%clk 0:00:41]} 39. Kd2 {[%clk 0:00:56]}  Rg2+ {[%clk 0:00:40]} 40. Kd1 {[%clk 0:00:56]}  Rxc2 {[%clk 0:00:39]} 41. Bxc2 {[%clk 0:00:54]}  Rxh3 {[%clk 0:00:38]} 42. a4 {[%clk 0:00:54]}  Rh1+ {[%clk 0:00:38]} 43. Ke2 {[%clk 0:00:54]}  Rh2+ {[%clk 0:00:37]} 44. Kd1 {[%clk 0:00:54]}  Be3 {[%clk 0:00:36]} 45. Rf3 {[%clk 0:00:51]}  Rd2+ {[%clk 0:00:35]} 46. Kc1 {[%clk 0:00:51]}  Bg5 {[%clk 0:00:33]} 47. Kb1 {[%clk 0:00:51]}  bxa4 {[%clk 0:00:30]} 48. Bxa4 {[%clk 0:00:50]}  h5 {[%clk 0:00:29]} 49. Be8 {[%clk 0:00:48]}  f5 {[%clk 0:00:28]} 50. Bxh5 {[%clk 0:00:47]}  Kf6 {[%clk 0:00:26]} 51. Be8 {[%clk 0:00:40]}  e5 {[%clk 0:00:24]} 52. Bc6 {[%clk 0:00:41]}  Re2 {[%clk 0:00:20]} 53. Rd3 {[%clk 0:00:40]}  e4 {[%clk 0:00:20]} 54. Rd6+ {[%clk 0:00:38]}  Ke5 {[%clk 0:00:20]} 55. Rd5+ {[%clk 0:00:38]}  Ke6 {[%clk 0:00:19]} 56. Ra5 {[%clk 0:00:37]}  Re1+ {[%clk 0:00:13]} 57. Ka2 {[%clk 0:00:37]}  e3 {[%clk 0:00:14]} 58. Rxa6 {[%clk 0:00:37]}  Ke5 {[%clk 0:00:14]} 59. Bb5 {[%clk 0:00:35]}  f4 {[%clk 0:00:13]} 60. Rg6 {[%clk 0:00:32]}  Bf6 {[%clk 0:00:13]} 61. Rg8 {[%clk 0:00:32]}  f3 {[%clk 0:00:13]} 62. Re8+ {[%clk 0:00:32]}  Kf4 {[%clk 0:00:13]} 63. Rf8 {[%clk 0:00:32]}  Kg5 {[%clk 0:00:13]} 64. Rg8+ {[%clk 0:00:32]}  Kh4 {[%clk 0:00:13]} 65. Rf8 {[%clk 0:00:32]}  e2 {[%clk 0:00:12]} 66. Rxf6 {[%clk 0:00:30]}  Rc1 {[%clk 0:00:09]} 67. Bxe2 {[%clk 0:00:22]}  fxe2 {[%clk 0:00:09]} 68. Re6 {[%clk 0:00:23]}  e1=Q {[%clk 0:00:10]} 69. Rxe1 {[%clk 0:00:23]}  Rxe1 {[%clk 0:00:09]} 70. b4 {[%clk 0:00:23]}  Kg5 {[%clk 0:00:10]} 71. Kb3 {[%clk 0:00:23]}  Kf6 {[%clk 0:00:10]} 72. Ka4 {[%clk 0:00:23]}  Ke6 {[%clk 0:00:10]} 73. Ka5 {[%clk 0:00:22]}  Kd7 {[%clk 0:00:10]} 74. c4 {[%clk 0:00:22]}  Ra1+ {[%clk 0:00:10]} 75. Kb6 {[%clk 0:00:22]}  Kc8 {[%clk 0:00:08]} 76. b5 {[%clk 0:00:20]}  Rh1 {[%clk 0:00:08]} 77. c5 {[%clk 0:00:21]}  Rh5 {[%clk 0:00:08]} 78. Kc6 {[%clk 0:00:20]}  Rh6+ {[%clk 0:00:08]} 79. Kd5 {[%clk 0:00:21]}  Kc7 {[%clk 0:00:09]} 80. Ke5 {[%clk 0:00:20]}  Rh5+ {[%clk 0:00:09]} 81. Kd4 {[%clk 0:00:21]}  Rg5 {[%clk 0:00:09]} 82. Kc4 {[%clk 0:00:21]}  Kd7 {[%clk 0:00:10]} 83. Kb4 {[%clk 0:00:21]}  Rg4+ {[%clk 0:00:09]} 84. Ka5 {[%clk 0:00:21]}  Rc4 {[%clk 0:00:09]} 85. Kb6 {[%clk 0:00:21]}  Kc8 {[%clk 0:00:09]} 86. Kc6 {[%clk 0:00:21]}  Rh4 {[%clk 0:00:09]} 87. Kb6 {[%clk 0:00:22]}  Rh5 {[%clk 0:00:09]} 88. Kc6 {[%clk 0:00:22]}  Rh6+ {[%clk 0:00:10]} 89. Kd5 {[%clk 0:00:21]}  Rg6 {[%clk 0:00:11]} 90. Kc4 {[%clk 0:00:21]}  Kc7 {[%clk 0:00:11]} 91. Kb4 {[%clk 0:00:21]}  Rg5 {[%clk 0:00:11]} 92. Kc4 {[%clk 0:00:20]}  Rg4+ {[%clk 0:00:12]} 93. Kd5 {[%clk 0:00:20]}  Rb4 {[%clk 0:00:12]} 94. b6+ {[%clk 0:00:19]}  Kb7 {[%clk 0:00:11]} 95. Kd6 {[%clk 0:00:19]}  Rd4+ {[%clk 0:00:11]} 96. Ke5 {[%clk 0:00:19]}  Rd1 {[%clk 0:00:12]} 97. Ke6 {[%clk 0:00:18]}  Kc6 {[%clk 0:00:12]} 98. b7 {[%clk 0:00:18]}  Re1+ {[%clk 0:00:11]} 99. Kf5 {[%clk 0:00:18]}  Kxb7 {[%clk 0:00:12]} 100. Kf4 {[%clk 0:00:17]}  Kc6 {[%clk 0:00:12]} 101. Kf3 {[%clk 0:00:18]}  Rc1 {[%clk 0:00:12]} 102. Kf2 {[%clk 0:00:19]}  Rxc5 {[%clk 0:00:13]} 103. Ke2 {[%clk 0:00:20]}  Rc4 {[%clk 0:00:13]} 104. Kd3 {[%clk 0:00:21]}  Kd5 {[%clk 0:00:14]} 105. Ke3 {[%clk 0:00:21]}  Rb4 {[%clk 0:00:14]} 106. Kd3 {[%clk 0:00:22]}  Rb3+ {[%clk 0:00:14]} 107. Kc2 {[%clk 0:00:23]}  Kc4 {[%clk 0:00:15]} 108. Kd2 {[%clk 0:00:23]}  Ra3 {[%clk 0:00:15]} 109. Kc2 {[%clk 0:00:24]}  Ra2+ {[%clk 0:00:15]} 110. Kb1 {[%clk 0:00:25]}  Kb3 {[%clk 0:00:16]} 111. Kc1 {[%clk 0:00:25]}  Kc3 {[%clk 0:00:15]} 112. Kb1 {[%clk 0:00:25]}  Ra3 {[%clk 0:00:16]} 113. Kc1 {[%clk 0:00:25]}  Ra1# {[%clk 0:00:16]} 0-1


[Site "https://www.chess.com"]

[Event "Titled Tuesday Blitz February 15 Late 2022"]
[White "Briscoe, Chris"]
[Black "Burke, Paul"]
[WhiteFideId "408360"]
[BlackFideId "2605767"]
[WhiteElo "2111"]
[BlackElo "1834"]
[Result "1-0"]
[Round "11"]
[TimeControl "180+1"]
[Date "2022.02.16"]
[WhiteClock "0:00:14"]
[BlackClock "0:00:01"]

1. e4 {[%clk 0:03:00]}  e5 {[%clk 0:02:59]} 2. Nf3 {[%clk 0:03:00]}  Nc6 {[%clk 0:02:59]} 3. Bb5 {[%clk 0:02:59]}  f5 {[%clk 0:02:56]} 4. d4 {[%clk 0:02:55]}  fxe4 {[%clk 0:02:55]} 5. Nxe5 {[%clk 0:02:54]}  Nxe5 {[%clk 0:02:55]} 6. dxe5 {[%clk 0:02:54]}  c6 {[%clk 0:02:55]} 7. Nc3 {[%clk 0:02:52]}  Bb4 {[%clk 0:02:55]} 8. Bc4 {[%clk 0:02:33]}  Qe7 {[%clk 0:02:35]} 9. O-O {[%clk 0:02:19]}  Qxe5 {[%clk 0:02:32]} 10. Bxg8 {[%clk 0:01:28]}  Rxg8 {[%clk 0:02:29]} 11. f3 {[%clk 0:01:25]}  Bc5+ {[%clk 0:01:28]} 12. Kh1 {[%clk 0:01:22]}  e3 {[%clk 0:01:23]} 13. Ne4 {[%clk 0:01:20]}  Bb6 {[%clk 0:01:04]} 14. c4 {[%clk 0:01:13]}  Bc7 {[%clk 0:00:58]} 15. g3 {[%clk 0:01:12]}  d5 {[%clk 0:00:57]} 16. cxd5 {[%clk 0:01:07]}  cxd5 {[%clk 0:00:49]} 17. Nc5 {[%clk 0:01:06]}  d4 {[%clk 0:00:42]} 18. Qa4+ {[%clk 0:01:04]}  Kd8 {[%clk 0:00:33]} 19. Nd3 {[%clk 0:01:01]}  Qd5 {[%clk 0:00:24]} 20. Bxe3 {[%clk 0:00:57]}  dxe3 {[%clk 0:00:16]} 21. Nb4 {[%clk 0:00:56]}  Qd7 {[%clk 0:00:13]} 22. Rad1 {[%clk 0:00:52]}  Bd6 {[%clk 0:00:10]} 23. Qb3 {[%clk 0:00:50]}  Re8 {[%clk 0:00:06]} 24. Rxd6 {[%clk 0:00:41]}  Qxd6 {[%clk 0:00:05]} 25. Rd1 {[%clk 0:00:42]}  Qxd1+ {[%clk 0:00:05]} 26. Qxd1+ {[%clk 0:00:41]}  Bd7 {[%clk 0:00:04]} 27. Qe2 {[%clk 0:00:28]}  Rc8 {[%clk 0:00:03]} 28. Kg2 {[%clk 0:00:25]}  a6 {[%clk 0:00:03]} 29. Nd5 {[%clk 0:00:22]}  Bb5 {[%clk 0:00:02]} 30. Qe1 {[%clk 0:00:17]}  e2 {[%clk 0:00:02]} 31. Qa5+ {[%clk 0:00:17]}  Kd7 {[%clk 0:00:01]} 32. Nb6+ {[%clk 0:00:14]}  Kc6 {[%clk 0:00:01]} 33. Qe1 {[%clk 0:00:14]} 1-0


[Site "https://www.chess.com"]

[Event "Titled Tuesday Blitz February 15 Late 2022"]
[White "Chabris, Christopher"]
[Black "Haszon, David"]
[WhiteFideId "2005263"]
[BlackFideId "733610"]
[WhiteElo "2307"]
[BlackElo "2201"]
[Result "1-0"]
[Round "11"]
[TimeControl "180+1"]
[Date "2022.02.16"]
[WhiteClock "0:01:00"]
[BlackClock "0:01:53"]

1. e4 {[%clk 0:02:59]}  e5 {[%clk 0:02:59]} 2. Nf3 {[%clk 0:02:59]}  Nf6 {[%clk 0:02:59]} 3. Nxe5 {[%clk 0:03:00]}  Nxe4 {[%clk 0:03:00]} 4. Nc3 {[%clk 0:02:53]}  Nxc3 {[%clk 0:02:59]} 5. dxc3 {[%clk 0:02:53]}  d6 {[%clk 0:02:58]} 6. Nf3 {[%clk 0:02:52]}  Bf5 {[%clk 0:02:57]} 7. Be3 {[%clk 0:02:52]}  Nd7 {[%clk 0:02:57]} 8. Qd2 {[%clk 0:02:51]}  Be7 {[%clk 0:02:57]} 9. Nd4 {[%clk 0:02:50]}  Be6 {[%clk 0:02:54]} 10. O-O-O {[%clk 0:02:46]}  O-O {[%clk 0:02:53]} 11. f4 {[%clk 0:02:46]}  Nc5 {[%clk 0:02:44]} 12. f5 {[%clk 0:02:40]}  Bd7 {[%clk 0:02:36]} 13. Bc4 {[%clk 0:02:35]}  c6 {[%clk 0:02:31]} 14. g4 {[%clk 0:02:28]}  d5 {[%clk 0:02:32]} 15. Bd3 {[%clk 0:02:24]}  Nxd3+ {[%clk 0:02:17]} 16. Qxd3 {[%clk 0:02:20]}  Bg5 {[%clk 0:02:18]} 17. Rde1 {[%clk 0:02:05]}  Re8 {[%clk 0:02:15]} 18. h4 {[%clk 0:01:34]}  Bxe3+ {[%clk 0:02:12]} 19. Rxe3 {[%clk 0:01:33]}  Rxe3 {[%clk 0:02:13]} 20. Qxe3 {[%clk 0:01:34]}  Qe8 {[%clk 0:02:14]} 21. Qf4 {[%clk 0:01:19]}  c5 {[%clk 0:02:13]} 22. Nf3 {[%clk 0:01:15]}  Bc6 {[%clk 0:02:13]} 23. Re1 {[%clk 0:01:13]}  Qd7 {[%clk 0:02:13]} 24. f6 {[%clk 0:01:12]}  Re8 {[%clk 0:02:12]} 25. Qg5 {[%clk 0:01:01]}  Rxe1+ {[%clk 0:02:00]} 26. Nxe1 {[%clk 0:01:01]}  Qxg4 {[%clk 0:01:53]} 27. Qxg4 {[%clk 0:01:00]} 1-0


[Site "https://www.chess.com"]

[Event "Titled Tuesday Blitz February 15 Late 2022"]
[White "Chernomordik, Pavel"]
[Black "Hoffmann, Asa"]
[WhiteFideId "2804530"]
[BlackFideId "2001470"]
[WhiteElo "2249"]
[BlackElo "2117"]
[Result "0-1"]
[Round "11"]
[TimeControl "180+1"]
[Date "2022.02.16"]
[WhiteClock "0:00:40"]
[BlackClock "0:01:35"]

1. e4 {[%clk 0:03:00]}  d6 {[%clk 0:02:55]} 2. d4 {[%clk 0:02:59]}  Nf6 {[%clk 0:02:52]} 3. Nc3 {[%clk 0:02:59]}  c6 {[%clk 0:02:52]} 4. Bg5 {[%clk 0:02:55]}  Nbd7 {[%clk 0:02:49]} 5. f4 {[%clk 0:02:49]}  Qa5 {[%clk 0:02:47]} 6. Bd3 {[%clk 0:02:46]}  e5 {[%clk 0:02:47]} 7. fxe5 {[%clk 0:02:35]}  dxe5 {[%clk 0:02:46]} 8. dxe5 {[%clk 0:02:34]}  Nxe5 {[%clk 0:02:39]} 9. Bxf6 {[%clk 0:02:33]}  gxf6 {[%clk 0:02:39]} 10. h3 {[%clk 0:02:19]}  Be6 {[%clk 0:02:36]} 11. a3 {[%clk 0:02:13]}  O-O-O {[%clk 0:02:35]} 12. Qe2 {[%clk 0:02:09]}  Bb4 {[%clk 0:02:29]} 13. axb4 {[%clk 0:01:41]}  Qxa1+ {[%clk 0:02:28]} 14. Kf2 {[%clk 0:01:34]}  Qxb2 {[%clk 0:02:26]} 15. Nd1 {[%clk 0:01:29]}  Qxb4 {[%clk 0:02:24]} 16. Nf3 {[%clk 0:01:27]}  Qc5+ {[%clk 0:02:23]} 17. Ne3 {[%clk 0:01:26]}  Rhg8 {[%clk 0:02:14]} 18. g4 {[%clk 0:01:24]}  Bxg4 {[%clk 0:02:10]} 19. hxg4 {[%clk 0:01:04]}  Nxg4+ {[%clk 0:02:09]} 20. Ke1 {[%clk 0:01:02]}  Qxe3 {[%clk 0:02:02]} 21. Qxe3 {[%clk 0:00:57]}  Nxe3 {[%clk 0:02:01]} 22. Rxh7 {[%clk 0:00:58]}  Rd7 {[%clk 0:01:55]} 23. Ke2 {[%clk 0:00:50]}  Ng4 {[%clk 0:01:54]} 24. Bc4 {[%clk 0:00:46]}  Ne5 {[%clk 0:01:49]} 25. Nxe5 {[%clk 0:00:42]}  fxe5 {[%clk 0:01:49]} 26. Bxf7 {[%clk 0:00:40]}  Re8 {[%clk 0:01:35]} 0-1


[Site "https://www.chess.com"]

[Event "Titled Tuesday Blitz February 15 Late 2022"]
[White "Debray, Christopher"]
[Black "Bon, Michael"]
[WhiteFideId "630810"]
[BlackFideId "620696"]
[WhiteElo "2369"]
[BlackElo "2466"]
[Result "0-1"]
[Round "11"]
[TimeControl "180+1"]
[Date "2022.02.16"]
[WhiteClock "0:00:13"]
[BlackClock "0:00:08"]

1. d4 {[%clk 0:03:00]}  d5 {[%clk 0:02:55]} 2. Bf4 {[%clk 0:03:01]}  Nf6 {[%clk 0:02:53]} 3. e3 {[%clk 0:03:01]}  c5 {[%clk 0:02:54]} 4. c3 {[%clk 0:03:01]}  e6 {[%clk 0:02:54]} 5. Nd2 {[%clk 0:03:00]}  Bd6 {[%clk 0:02:54]} 6. Bg3 {[%clk 0:03:00]}  Nc6 {[%clk 0:02:50]} 7. Ngf3 {[%clk 0:03:00]}  O-O {[%clk 0:02:47]} 8. Ne5 {[%clk 0:02:50]}  Bxe5 {[%clk 0:02:43]} 9. dxe5 {[%clk 0:02:49]}  Nd7 {[%clk 0:02:39]} 10. Bd3 {[%clk 0:02:36]}  h6 {[%clk 0:01:38]} 11. f4 {[%clk 0:02:33]}  f5 {[%clk 0:01:26]} 12. exf6 {[%clk 0:02:23]}  Qxf6 {[%clk 0:01:25]} 13. O-O {[%clk 0:02:21]}  b6 {[%clk 0:01:21]} 14. e4 {[%clk 0:02:19]}  Bb7 {[%clk 0:01:21]} 15. Qh5 {[%clk 0:02:01]}  Qf7 {[%clk 0:01:17]} 16. Qxf7+ {[%clk 0:01:54]}  Rxf7 {[%clk 0:01:15]} 17. Rae1 {[%clk 0:01:34]}  c4 {[%clk 0:01:09]} 18. Nxc4 {[%clk 0:01:20]}  dxc4 {[%clk 0:01:04]} 19. Bxc4 {[%clk 0:01:20]}  Kh8 {[%clk 0:00:51]} 20. Bxe6 {[%clk 0:01:19]}  Re7 {[%clk 0:00:50]} 21. Bd5 {[%clk 0:01:16]}  Nf6 {[%clk 0:00:49]} 22. c4 {[%clk 0:01:07]}  Nd4 {[%clk 0:00:37]} 23. Bh4 {[%clk 0:00:49]}  Bxd5 {[%clk 0:00:31]} 24. cxd5 {[%clk 0:00:25]}  Rxe4 {[%clk 0:00:30]} 25. Bxf6 {[%clk 0:00:24]}  Rxe1 {[%clk 0:00:29]} 26. Bxd4 {[%clk 0:00:25]}  Rxf1+ {[%clk 0:00:27]} 27. Kxf1 {[%clk 0:00:26]}  Rd8 {[%clk 0:00:27]} 28. Ke2 {[%clk 0:00:20]}  Rxd5 {[%clk 0:00:26]} 29. Ke3 {[%clk 0:00:19]}  Kg8 {[%clk 0:00:26]} 30. b4 {[%clk 0:00:17]}  Kf7 {[%clk 0:00:23]} 31. a4 {[%clk 0:00:18]}  g6 {[%clk 0:00:18]} 32. Ke4 {[%clk 0:00:18]}  Ke6 {[%clk 0:00:18]} 33. g4 {[%clk 0:00:18]}  h5 {[%clk 0:00:16]} 34. h3 {[%clk 0:00:15]}  hxg4 {[%clk 0:00:16]} 35. hxg4 {[%clk 0:00:16]}  b5 {[%clk 0:00:14]} 36. a5 {[%clk 0:00:16]}  a6 {[%clk 0:00:14]} 37. Bc5 {[%clk 0:00:15]}  Rd1 {[%clk 0:00:13]} 38. Bd4 {[%clk 0:00:14]}  Re1+ {[%clk 0:00:12]} 39. Kd3 {[%clk 0:00:14]}  Kd5 {[%clk 0:00:11]} 40. Bc5 {[%clk 0:00:13]}  Re4 {[%clk 0:00:09]} 41. f5 {[%clk 0:00:12]}  Rxg4 {[%clk 0:00:08]} 42. f6 {[%clk 0:00:12]}  Rf4 {[%clk 0:00:08]} 43. Be7 {[%clk 0:00:13]}  Rf5 {[%clk 0:00:07]} 44. Ke3 {[%clk 0:00:13]}  Ke6 {[%clk 0:00:07]} 45. Ke4 {[%clk 0:00:12]}  g5 {[%clk 0:00:07]} 46. Bd8 {[%clk 0:00:11]}  g4 {[%clk 0:00:07]} 47. Bc7 {[%clk 0:00:07]}  Rxf6 {[%clk 0:00:07]} 48. Bg3 {[%clk 0:00:08]}  Rf3 {[%clk 0:00:07]} 49. Kd4 {[%clk 0:00:08]}  Rxg3 {[%clk 0:00:07]} 50. Kc5 {[%clk 0:00:09]}  Rf3 {[%clk 0:00:07]} 51. Kb6 {[%clk 0:00:09]}  g3 {[%clk 0:00:08]} 52. Kxa6 {[%clk 0:00:10]}  g2 {[%clk 0:00:08]} 53. Kxb5 {[%clk 0:00:11]}  g1=Q {[%clk 0:00:09]} 54. a6 {[%clk 0:00:12]}  Qf1+ {[%clk 0:00:09]} 55. Ka5 {[%clk 0:00:13]}  Ra3+ {[%clk 0:00:09]} 56. Kb6 {[%clk 0:00:13]}  Qxa6+ {[%clk 0:00:08]} 0-1


[Site "https://www.chess.com"]

[Event "Titled Tuesday Blitz February 15 Late 2022"]
[White "Degardin, Sylvain"]
[Black "Tasev, Dejan"]
[WhiteFideId "20623070"]
[BlackFideId "936618"]
[WhiteElo "2156"]
[BlackElo "2253"]
[Result "1-0"]
[Round "11"]
[TimeControl "180+1"]
[Date "2022.02.15"]
[WhiteClock "0:00:31"]
[BlackClock "0:01:04"]

1. d4 {[%clk 0:03:00]}  Nf6 {[%clk 0:02:59]} 2. c4 {[%clk 0:03:00]}  e6 {[%clk 0:02:59]} 3. Nf3 {[%clk 0:03:00]}  d5 {[%clk 0:02:59]} 4. Nc3 {[%clk 0:03:00]}  Be7 {[%clk 0:03:00]} 5. Bf4 {[%clk 0:02:59]}  c6 {[%clk 0:03:00]} 6. e3 {[%clk 0:02:59]}  O-O {[%clk 0:03:00]} 7. Qc2 {[%clk 0:02:58]}  Nbd7 {[%clk 0:02:58]} 8. a3 {[%clk 0:02:51]}  dxc4 {[%clk 0:02:57]} 9. Bxc4 {[%clk 0:02:50]}  b5 {[%clk 0:02:56]} 10. Bd3 {[%clk 0:02:50]}  Bb7 {[%clk 0:02:55]} 11. O-O {[%clk 0:02:48]}  a6 {[%clk 0:02:54]} 12. Ne4 {[%clk 0:02:47]}  c5 {[%clk 0:02:48]} 13. Nxc5 {[%clk 0:02:39]}  Nxc5 {[%clk 0:02:45]} 14. dxc5 {[%clk 0:02:39]}  Bxf3 {[%clk 0:02:42]} 15. gxf3 {[%clk 0:02:37]}  Qd5 {[%clk 0:02:42]} 16. c6 {[%clk 0:02:09]}  Qxf3 {[%clk 0:02:39]} 17. Rac1 {[%clk 0:01:55]}  Rac8 {[%clk 0:02:30]} 18. Bg3 {[%clk 0:01:28]}  Qh5 {[%clk 0:02:10]} 19. Rfd1 {[%clk 0:01:27]}  Rfd8 {[%clk 0:02:00]} 20. c7 {[%clk 0:01:24]}  Rd5 {[%clk 0:01:57]} 21. Be2 {[%clk 0:01:18]}  Qg5 {[%clk 0:01:46]} 22. Bf3 {[%clk 0:01:12]}  Rxd1+ {[%clk 0:01:31]} 23. Rxd1 {[%clk 0:01:13]}  Nd5 {[%clk 0:01:29]} 24. Bxd5 {[%clk 0:01:05]}  exd5 {[%clk 0:01:30]} 25. Qc6 {[%clk 0:01:06]}  Qg4 {[%clk 0:01:24]} 26. Rxd5 {[%clk 0:01:05]}  h5 {[%clk 0:01:22]} 27. Qd7 {[%clk 0:01:01]}  Bf6 {[%clk 0:01:13]} 28. Qxg4 {[%clk 0:00:57]}  hxg4 {[%clk 0:01:13]} 29. Be5 {[%clk 0:00:48]}  Kh7 {[%clk 0:01:08]} 30. Bxf6 {[%clk 0:00:47]}  gxf6 {[%clk 0:01:08]} 31. Rd7 {[%clk 0:00:46]}  Kg6 {[%clk 0:01:08]} 32. e4 {[%clk 0:00:45]}  f5 {[%clk 0:01:04]} 33. exf5+ {[%clk 0:00:46]}  Kxf5 {[%clk 0:01:04]} 34. Rxf7+ {[%clk 0:00:43]}  Ke6 {[%clk 0:01:04]} 35. Rg7 {[%clk 0:00:42]}  Kf5 {[%clk 0:01:04]} 36. Kg2 {[%clk 0:00:39]}  Kf4 {[%clk 0:01:04]} 37. Rf7+ {[%clk 0:00:37]}  Kg5 {[%clk 0:01:03]} 38. Kg3 {[%clk 0:00:37]}  a5 {[%clk 0:01:04]} 39. f3 {[%clk 0:00:31]}  gxf3 {[%clk 0:01:04]} 40. Kxf3 {[%clk 0:00:32]}  a4 {[%clk 0:01:04]} 41. Ke4 {[%clk 0:00:31]} 1-0


[Site "https://www.chess.com"]

[Event "Titled Tuesday Blitz February 15 Late 2022"]
[White "Desideri, Ricardo Maruchi"]
[Black "Vargas Pereda, Jesus Manue"]
[WhiteFideId "2110440"]
[BlackFideId "5115710"]
[WhiteElo "1945"]
[BlackElo "1774"]
[Result "1-0"]
[Round "11"]
[TimeControl "180+1"]
[Date "2022.02.16"]
[WhiteClock "0:00:38"]
[BlackClock "0:00:03"]

1. e4 {[%clk 0:02:52]}  c5 {[%clk 0:02:59]} 2. Nf3 {[%clk 0:02:51]}  Nc6 {[%clk 0:02:59]} 3. d4 {[%clk 0:02:52]}  cxd4 {[%clk 0:03:00]} 4. Nxd4 {[%clk 0:02:52]}  e5 {[%clk 0:03:00]} 5. Nb5 {[%clk 0:02:51]}  d6 {[%clk 0:03:00]} 6. N1c3 {[%clk 0:02:51]}  a6 {[%clk 0:03:00]} 7. Na3 {[%clk 0:02:50]}  Nf6 {[%clk 0:03:00]} 8. Bd3 {[%clk 0:02:48]}  b5 {[%clk 0:02:59]} 9. Nd5 {[%clk 0:02:46]}  Nxd5 {[%clk 0:02:43]} 10. exd5 {[%clk 0:02:45]}  Ne7 {[%clk 0:02:42]} 11. O-O {[%clk 0:02:43]}  Bf5 {[%clk 0:02:42]} 12. Bg5 {[%clk 0:02:33]}  f6 {[%clk 0:02:39]} 13. Be3 {[%clk 0:02:30]}  Bxd3 {[%clk 0:02:37]} 14. Qxd3 {[%clk 0:02:29]}  Ng6 {[%clk 0:02:26]} 15. c4 {[%clk 0:02:23]}  bxc4 {[%clk 0:02:25]} 16. Nxc4 {[%clk 0:02:22]}  Be7 {[%clk 0:02:25]} 17. Bb6 {[%clk 0:02:19]}  Qd7 {[%clk 0:02:23]} 18. Na5 {[%clk 0:02:11]}  O-O {[%clk 0:02:20]} 19. Nc6 {[%clk 0:02:09]}  Rac8 {[%clk 0:02:17]} 20. g3 {[%clk 0:02:04]}  Rxc6 {[%clk 0:01:53]} 21. dxc6 {[%clk 0:02:03]}  Qxc6 {[%clk 0:01:54]} 22. Qb3+ {[%clk 0:01:46]}  Kh8 {[%clk 0:01:52]} 23. a4 {[%clk 0:01:47]}  f5 {[%clk 0:01:34]} 24. Rac1 {[%clk 0:01:43]}  Qe4 {[%clk 0:01:30]} 25. Rc4 {[%clk 0:01:36]}  Qd5 {[%clk 0:01:21]} 26. Rd1 {[%clk 0:01:35]}  Qb7 {[%clk 0:01:14]} 27. Rc7 {[%clk 0:01:34]}  Qb8 {[%clk 0:01:07]} 28. a5 {[%clk 0:01:32]}  f4 {[%clk 0:01:02]} 29. Qe6 {[%clk 0:01:24]}  fxg3 {[%clk 0:00:57]} 30. hxg3 {[%clk 0:01:23]}  Qa8 {[%clk 0:00:24]} 31. Rxe7 {[%clk 0:01:14]}  Nxe7 {[%clk 0:00:18]} 32. Qxe7 {[%clk 0:01:14]}  Qf3 {[%clk 0:00:18]} 33. Rxd6 {[%clk 0:01:09]}  h5 {[%clk 0:00:14]} 34. Rd8 {[%clk 0:01:07]}  Rxd8 {[%clk 0:00:11]} 35. Qxd8+ {[%clk 0:01:07]}  Kh7 {[%clk 0:00:12]} 36. Qh4 {[%clk 0:00:48]}  Qd1+ {[%clk 0:00:08]} 37. Kh2 {[%clk 0:00:47]}  g6 {[%clk 0:00:08]} 38. Qe4 {[%clk 0:00:42]}  Qg4 {[%clk 0:00:02]} 39. Qxg4 {[%clk 0:00:40]}  hxg4 {[%clk 0:00:02]} 40. Kg2 {[%clk 0:00:39]}  e4 {[%clk 0:00:01]} 41. Kf1 {[%clk 0:00:37]}  Kg7 {[%clk 0:00:02]} 42. Ke2 {[%clk 0:00:38]}  Kf7 {[%clk 0:00:03]} 43. Ke3 {[%clk 0:00:38]}  Ke6 {[%clk 0:00:03]} 44. Kxe4 {[%clk 0:00:38]} 1-0


[Site "https://www.chess.com"]